Cogmind - Beta 15 @@@ ROGUE MODE // 2025.06.26 @ 05:26:40 Player: Jammed Result: Destroyed by D-53 Grenadier with Mini Grenade Launcher Performance ------------- Evolutions (0) 0 Regions Visited (2) 400 Robots Destroyed (31) 155 Value Destroyed (704) 704 Prototype IDs (0) 0 Alien Tech Used (0) 0 Bonus (0) 0 TOTAL SCORE: 1259 Bonus ------- None Cogmind --------- Core Integrity 0/250 Matter 173/300 Energy 196/250 System Corruption 0% Temperature Warm (160) Movement Treading (160) Location -10/Mines Parts ------- > --- POWER (1) -------- Ion Engine > --- PROPULSION (2) --- Light Treads Light Treads > --- UTILITY (2) ------ Heat Sink Large Storage Unit > --- WEAPON (2) ------- Beam Cannon Beam Cannon > --- INVENTORY (15) --- Light Treads Seismic Detector Light Cannon Light Cannon Light Cannon Grenade Launcher Mining Laser Mace Mace Mace Mace Peak State ------------ > --- POWER ------------ Ion Engine > --- PROPULSION ------- Aluminum Leg Aluminum Leg > --- UTILITY ---------- Large Storage Unit Seismic Detector > --- WEAPON ----------- Medium Laser Beam Cannon > --- INVENTORY -------- Ion Engine Light Ion Engine Light Treads Light Treads Light Treads Compact Wheel Compact Wheel Small Laser Light Assault Rifle Mining Laser [Rating: 8] Favorites ----------- Power Ion Engine Engine Ion Engine Propulsion Light Treads Treads Light Treads Leg Aluminum Leg Wheel Compact Wheel Utility Large Storage Unit Device Seismic Detector Storage Large Storage Unit Weapon Beam Cannon Energy Gun Medium Laser Energy Cannon Beam Cannon Ballistic Gun Light Assault Rifle Launcher Grenade Launcher Build | -11 -10 -10 ------- Run | Yrd Mat Min Slots Evolved . | . . . Power . | . . . Propulsion . | . . . Utility . | . . . Weapon . | . . . Parts Attached 18 | 1 14 3 Power 2 | . 2 . Engine 2 | . 2 . Core . | . . . Reactor . | . . . Propulsion 5 | . 3 2 Treads 3 | . 1 2 Leg . | . . . Wheel 2 | . 2 . Hover . | . . . Flight . | . . . Utility 4 | 1 3 . Device 3 | 1 2 . Storage 1 | . 1 . Processor . | . . . Hackware . | . . . Protection . | . . . Artifact . | . . . Weapon 7 | . 6 1 Energy Gun 1 | . 1 . Energy Cannon 5 | . 4 1 Ballistic Gun . | . . . Ballistic Cannon . | . . . Launcher 1 | . 1 . Special Weapon . | . . . Impact Weapon . | . . . Slashing Weapon . | . . . Piercing Weapon . | . . . Special Melee Weapon . | . . . Unidentified Prototypes . | . . . Parts Lost 5 | . 1 4 Power 1 | . 1 . Propulsion 2 | . . 2 Utility . | . . . Weapon 2 | . . 2 Highest Loss Streak 3 | . 1 3 To Critical Strikes . | . . . Average Backups 12 | 6 12 14 Power . | 1 . . Propulsion 3 | 4 4 2 Utility . | . . 1 Weapon 7 | 1 7 10 Tool/Special . | . . . Unused Backups 18 | . 10 8 Power 1 | . 1 . Propulsion 2 | . 2 . Utility 2 | . 2 . Weapon 13 | . 5 8 Tool/Special . | . . . Average Slot Usage (%) 99 | . 99 95 Engine 13 | . 13 14 Treads 11 | . 10 22 Leg 6 | . 7 . Wheel 10 | . 10 4 Device 14 | . 14 14 Storage 14 | . 14 14 Energy Gun 4 | . 4 . Energy Cannon 23 | . 23 24 Peak Build Rating 8 | 7 8 8 Average Rating 7 | 6 7 7 On Entrance 7 | 6 7 8 Naked Turns . | . . . Heaviest Build 32 | 12 32 32 Greatest Support 40 | 20 20 40 Greatest Overweight (x) 1 | . 1 . Average Overweight (x) . | . . . Largest Inventory Capacity 15 | 8 15 15 Average Capacity 14 | 8 14 15 Most Carried 15 | 7 15 15 Average Carried 12 | 6 13 13 Final Capacity 15 | 8 15 15 Final Carried 15 | 7 15 11 Class Distribution -------------------- 100% | Mutant Dominant Class ---------------- Mutant | -10/Materials Mutant | -10/Mines Resources | -11 -10 -10 ----------- Run | Yrd Mat Min Matter Collected 398 | 220 178 . Remotely . | . . . Salvage Created 1113 | 165 799 149 Parts 65 | 14 44 7 Haulers Intercepted 2 | . 2 . Recyclers Shooed 2 | . 2 . Parts Field Recycled . | . . . Retrieved Matter . | . . . Parts Self-Destructed . | . . . Prevented . | . . . Kills | -11 -10 -10 ------- Run | Yrd Mat Min Combat Hostiles Destroyed 17 | . 14 3 Guns 1 | . 1 . Cannons 12 | . 11 1 AOE 3 | . 1 2 Classes Destroyed 8 | 2 5 1 Tunneler 4 | 4 . . Hauler 2 | . 2 . Recycler 4 | 1 2 1 Mechanic 1 | . 1 . Watcher 3 | . 3 . Swarmer 3 | . 3 . Grunt 13 | . 11 2 Demolisher 1 | . . 1 Best Kill Streak 3 | 3 2 3 Combat Bots Only 2 | . 2 2 Max Kills in Single Turn 2 | 1 1 2 Gunslinging . | . . . Exploded 1 | . 1 1 Melee . | . . . Uniques/NPCs Destroyed . | . . . Combat | -11 -10 -10 -------- Run | Yrd Mat Min Hostile Shots Fired 56 | . 33 23 Missed 11 | . 10 1 Hits 45 | . 23 22 Projectile 45 | . 23 22 AOE 15 | . . 15 Critical Strikes 1 | . . 1 Damage Taken 960 | . 289 671 Core 261 | . 59 202 Absorbed by Shields . | . . . Core Remaining (%) 100 | 100 . . Volleys Fired 67 | 10 45 12 Largest 2 | 2 2 2 Hottest 120 | 70 120 120 Shots Fired 127 | 20 87 20 Gun 45 | 20 25 . Cannon 75 | . 59 16 Launcher 7 | . 3 4 Special . | . . . Kinetic 10 | 10 . . Thermal 110 | 10 84 16 Explosive 7 | . 3 4 Electromagnetic . | . . . Robot Hit Streak 18 | 8 18 8 Robot Miss Streak 3 | 2 3 3 Penetration Max . | . . . Secondary Targets . | . . . Shots Hit Robots 78 | 14 52 12 Core Hits 47 | 7 30 10 Critical Kills 1 | . 1 . Critical Parts Destroyed . | . . . Critical Strikes 6 | 2 4 . Burn 5 | 2 3 . Meltdown 1 | . 1 . Melee Attacks . | . . . Impact . | . . . Slashing . | . . . Piercing . | . . . Sneak Attacks . | . . . Combat Hostiles . | . . . Follow-up Attacks . | . . . Damage Inflicted 1378 | 162 885 331 Guns 397 | 162 235 . Cannons 703 | . 544 159 Explosions 278 | . 106 172 Melee . | . . . Ramming . | . . . Kinetic 50 | 50 . . Thermal 1050 | 112 779 159 Explosive 278 | . 106 172 Electromagnetic . | . . . Impact . | . . . Slashing . | . . . Piercing . | . . . Highest Corruption . | . . . Average Corruption . | . . . Corruption Purged . | . . . Corruption Blocked . | . . . Overload Shots . | . . . Overflow Damage . | . . . Projectiles . | . . . Explosions . | . . . Melee . | . . . Knockbacks . | . . . Impact . | . . . Kinetic . | . . . Secondary . | . . . Self-Inflicted Damage 16 | . 16 . Shots 1 | . 1 . Rammed . | . . . Targets Rammed . | . . . Kicked . | . . . Crushed . | . . . Highest Temperature 264 | 80 264 240 Average Temperature 78 | 34 79 114 Received Heat Transfer 204 | . 129 75 Siege Activations . | . . . Martial Activations . | . . . Shielding Activations . | . . . Robots Disrupted . | . . . Combat Hostiles . | . . . Robots Corrupted . | . . . Combat Hostiles . | . . . Parts Fried . | . . . Impact Corruptions . | . . . Robots Melted 1 | . 1 . Combat Hostiles 1 | . 1 . Parts Melted 8 | 2 5 1 Heat Transferred 2815 | 481 2001 333 Parts Sabotaged . | . . . Parts Stolen . | . . . Parts Stripped . | . . . Power Chain Reactions . | . . . Alert | -11 -10 -10 ------- Run | Yrd Mat Min Maximum Alert Level 1 | . 1 . Low Security (%) 95 | 100 94 100 Level 1 4 | . 5 . Level 2 . | . . . Level 3 . | . . . Level 4 . | . . . Level 5 . | . . . High Security . | . . . Max Security . | . . . Peak Influence 215 | 10 215 144 Initial 65 | . . 65 Average 91 | 2 96 107 Influence Increases 685 | 25 561 99 Destroy 0b10 Robot/C 340 | . 280 60 Destroy 0b10 Robot/NC 70 | 25 40 5 Destroy Leader 100 | . 80 20 Successful Hack 20 | . 20 . Select Force Hacks 30 | . 30 . Disable Machine 15 | . 15 . Destroy Structure 35 | . 21 14 Lose Combat Pursuer 75 | . 75 . Influence Decreases 581 | 25 393 163 Entered New Map 103 | . . 103 Time Decay 428 | 25 383 20 Lost Part 50 | . 10 40 Squads Dispatched 3 | . 3 . Investigation 3 | . 3 . Extermination . | . . . Reinforcement . | . . . Assault . | . . . Garrison . | . . . Intercept . | . . . Searches Triggered . | . . . Construction Impeded . | . . . Haulers Reinforced . | . . . Active Scanning Responses . | . . . Cargo Convoy Interrupts . | . . . Stealth | -11 -10 -10 --------- Run | Yrd Mat Min Distress Signals 2 | . 2 . Communications Jammed . | . . . Distress Signals . | . . . Times Spotted 31 | . 26 5 Peak Tracking Total 4 | . 4 3 Tactical Retreats 4 | . 4 . Traps | -11 -10 -10 ------- Run | Yrd Mat Min Traps Triggered 2 | . 2 . Indirectly . | . . . Trap Hack Attempts . | . . . Triggered . | . . . Disarmed . | . . . Reprogrammed . | . . . Reused . | . . . Traps Extracted . | . . . Installed . | . . . Triggered . | . . . Machines | -11 -10 -10 ---------- Run | Yrd Mat Min Machines Disabled 2 | . 2 . Max in Single Turn 1 | . 1 . Machines Repaired . | . . . Machines Dismantled . | . . . Machines Sabotaged . | . . . Overloaded Fab Kills . | . . . Hacking | -11 -10 -10 --------- Run | Yrd Mat Min Machines Accessed 9 | . 9 . Terminals 8 | . 8 . Fabricators . | . . . Repair Stations . | . . . Recycling Units 1 | . 1 . Scanalyzers . | . . . Garrison Access . | . . . Total Hacks 23 | . 23 . Successful 10 | . 10 . Failed 13 | . 13 . Catastrophic 3 | . 3 . Database Lockouts . | . . . Manual 20 | . 20 . Terminals 22 | . 22 . Fabricators . | . . . Repair Stations . | . . . Recycling Units 1 | . 1 . Scanalyzers . | . . . Garrison Access . | . . . Terminal Hacks 2 | . 2 . Robot Analysis 1 | . 1 . Locate Traps 1 | . 1 . Fabricator Hacks . | . . . Repair Station Hacks . | . . . Recycling Unit Hacks . | . . . Scanalyzer . | . . . Garrison Access Hacks . | . . . Unauthorized Hacks 8 | . 8 . Terminals 7 | . 7 . Botnet 1 | . 1 . Operators 1 | . 1 . Skim 5 | . 5 . Fabricators . | . . . Repair Stations . | . . . Recycling Units 1 | . 1 . Tunnel 1 | . 1 . Scanalyzers . | . . . Garrison Access . | . . . Data Cores Recovered . | . . . Used . | . . . Hacking Detections 8 | . 8 . Full Trace Events 1 | . 1 . Feedback Events . | . . . Feedback Blocked . | . . . Robot Schematics Acquired . | . . . Robots Built . | . . . Authchips . | . . . Time . | . . . Total Robot Build Rating . | . . . Part Schematics Acquired . | . . . Parts Built . | . . . Authchips . | . . . Time . | . . . Total Part Build Rating . | . . . Parts Repaired . | . . . Time . | . . . Parts Recycled . | . . . Recycled Matter . | . . . Retrieved Matter . | . . . Retrieved Components . | . . . Parts Scanalyzed . | . . . Part Schematics Acquired . | . . . Parts Damaged . | . . . Bothacking | -11 -10 -10 ------------ Run | Yrd Mat Min Used RIF Installer . | . . . Robots Hacked . | . . . Non-combat . | . . . Combat . | . . . Robot Hacks Applied . | . . . Relay Couplers Released . | . . . Fabnet Peak Effective % . | . . . Robots Rewired . | . . . Allies Hacked . | . . . Hacks Repelled . | . . . Allies | -11 -10 -10 -------- Run | Yrd Mat Min Total Allies . | . . . Largest Group . | . . . Highest-Rated Group . | . . . Highest-Rated Ally . | . . . Total Orders . | . . . Ally Attacks . | . . . Total Damage . | . . . Kills . | . . . Allies Corrupted . | . . . Allies Melted . | . . . Intel | -11 -10 -10 ------- Run | Yrd Mat Min Active Infowar (turns) 969 | 22 905 42 Seismic 969 | 22 905 42 Robot Analysis Total 1 | . 1 . Derelict Logs Recovered . | . . . Drone Launches . | . . . Drone Recoveries . | . . . Exploration | -11 -10 -10 ------------- Run | Yrd Mat Min Turns Passed 1391 | 80 1257 54 Spaces Moved 695 | 27 665 3 Core . | . . . Treads 3 | . . 3 Legs 135 | 27 108 . Wheels 557 | . 557 . Hover . | . . . Flight . | . . . Fastest Speed 115 | 120 115 160 Average Speed 126 | 120 126 160 Slowest Speed 190 | 120 190 160 Overloaded Moves . | . . . Propulsion Burnouts . | . . . Robots Hopped . | . . . Potential Cave-ins . | . . . Cave-ins Triggered . | . . . Exploration Rate (%) 33 | 4 92 5 Regions Visited 2 Branch Regions 1 Pre-discovered Areas 4 | . 4 . Known Exits Taken 1 | . 1 . Unknown Exits Taken 1 | 1 . . Scrap Searched . | . . . Spaces Dug 4 | . 4 . Terrain Destroyed 43 | . 22 21 Melee . | . . . Projectile . | . . . AOE 43 | . 22 21 Terrain Rammed . | . . . Walls Destroyed . | . . . Machines Disabled . | . . . Actions | -11 -10 -10 --------- Run | Yrd Mat Min Total 1085 | 56 997 32 Wait 269 | 18 241 10 Move 693 | 26 664 3 Hop . | . . . Pick Up 15 | 1 14 . Fast Attach 4 | 1 3 . Attach 6 | . 2 4 Detach 2 | . 2 . Swap 17 | . 14 3 Drop 12 | . 12 . Fire 67 | 10 45 12 Melee . | . . . Ram . | . . . Kick . | . . . Crush . | . . . Escape Stasis . | . . . Rewire . | . . . Trap . | . . . Miscellaneous . | . . . Route ------- -11/Scrapyard -10/Materials (discovered 6 exits: *Mat x3 / *Min x2 / *Sub) -10/Mines (discovered 4 exits: Mat x2 / Exi / Sub) History --------- Turn | Location | Event 1 | -11/Scrapyard | Discovered new exit (range 3) 81 | -11/Scrapyard | Entered Materials 304 | -10/Materials | Build established: Mutant 409 | -10/Materials | Discovered new exit (range 5) 931 | -10/Materials | Discovered new exit (range 12) 1040 | -10/Materials | Discovered new exit (range 15) 1043 | -10/Materials | Discovered new exit (range 5) 1118 | -10/Materials | Discovered new exit (range 15) 1130 | -10/Materials | Learned Storage garrison access intel 1167 | -10/Materials | Learned 4 Recycling zone layouts 1216 | -10/Materials | Learned 2 Mines zone layouts 1227 | -10/Materials | Learned location of 2 exits from Mines 1228 | -10/Materials | Identified exit to Materials 1229 | -10/Materials | Learned location of Recycling (-7) 1230 | -10/Materials | Learned location of 2 exits from Mines 1261 | -10/Materials | Learned 4 Subcaves zone layouts 1289 | -10/Materials | Identified exit to Mines 1338 | -10/Materials | Entered Mines 1339 | -10/Mines | Assembled infested the area 1339 | -10/Mines | Identified exit to Subcaves 1339 | -10/Mines | Identified exit to Exiles 1371 | -10/Mines | Core integrity fell below 50% 1373 | -10/Mines | Core integrity fell below 20% 1392 | -10/Mines | Destroyed by D-53 Grenadier with Mini Grenade Launcher Last Messages --------------- 01372_ U-05 Engineer builds a Wall. 01373_ The unstable cave ceiling collapses. 01374_ R-06 Scavenger destroyed. 01374_ Launcher Guidance Computer melted. 01374_ D-53 Grenadier destroyed. 01375_ The unstable cave ceiling collapses. 01377_ U-05 Engineer lays Concrete. 01379_ U-05 Engineer builds a Wall. 01381_ Beam Cannon destroyed. 01382_ The unstable cave ceiling collapses. 01383_ Lgt. Treads destroyed. 01384_ U-05 Engineer lays Concrete. 01385_ The unstable cave ceiling collapses. 01385_ U-05 Engineer lays Concrete. 01386_ U-05 Engineer builds a Wall. 01387_ K-01 Serf collects debris. 01388_ The unstable cave ceiling collapses. 01388_ Beam Cannon destroyed. 01391_ K-01 Serf collects debris. 01391_ U-05 Engineer lays Concrete. Map ----- +----------------------------------------------------+ | ?????????????????????????????????????????????????? | | ?????????????????????????????????????????????????? | | ?????????????????????????????????????????????????? | | ??????????????????????????????????????>??????????? | | ?????????????????????????????????????????????????? | | ?????????????????????????????????????????????????? | | ?????????????????????????????????????????????????? | | ?????????????????????????????????????????????????? | | ?????????????????????????????????????????????????? | | ?????????????????????????????????????????????????? | | ?????????????????????????????????????????????????? | | ?????????????????????????????????????????????????? | | ?????????????????????????????????????????????????? | | ?????????????????????????????????????????????????? | | ?????????????????????????????????????????????????? | | ?????????????????????????????????????????????????? | | ?????????????????????????????????????????????????? | | ?????????????????????????????????????????????????? | | ?????????????????????????????????????????????????? | | ?????????????????????????????????????????????????? | | ??????????????????????#######????????????????????? | | ?????????????????????## ##???????????????????? | | ????????????????????## ### #?? | | ????????????????????# ########## #?? | | ????????????????????# #???????## #?? | | ????????????????????# @ #??????## ##?? | | ????????????????????# ##?????# ####??? | | ??????????????????### ##????# ##?????? | | ??????????????????# ##???## ##???#### | | ??????????????????# ???# ####### # | | ??????????????????# ####### ### # | | ??????????????????# #?????# d | | ??????????????????# #?????# !u!k | | ??????????????????# #?????# = # ####### | | ??????????????????# ##????# %=# # ??????## # | | ??????????????????# ##???# # %# #?????????## ## | | ??????????????????# ######## =###??????????# #? | | ????????????####### #????????????# #? | | ???????????## ## ####### #????????????# #? | | ????#?????## #?????# #????????????# #? | | ????#?????# #?????# ############## #? | | ????#?????# ##?????# #? | | ????#?????## ##??????# ################? | | ????#??????## ### ######### #???????????????? | | ????????????## #?# #####???########? | | ?????????????# #?###### #### #???# #? | | ????########### ##??????# #??# #???# < #? | | ?????????????????????????????????????????????????? | | ?????????????????????????????????????????????????? | | ?????????????????????????????????????????????????? | +----------------------------------------------------+ Best States ------------- Heat Dissipation 35 Energy Generation 10 Energy Capacity 250 Matter Stores 300 Matter Capacity 300 Sight Range 16 Terrain Scan Density 10 Evasion (%) 45 Recoil Reduction 2 Item Schematics ----------------- None Robot Schematics ------------------ None Fabricated ------------ Nothing Repaired ---------- Nothing Alien Tech Used ----------------- None Achievements -------------- None Challenges ------------ None Game ------ Seed ThermalSpectralDoomcannon Manual? 0 Play Time 00:09:57 Cumulative 301.7 hours Start 2025.06.26 @ 05:17:36 End 2025.06.26 @ 05:26:40 Sessions 1 Manual Loads 0 Difficulty Rogue Special Mode None Game No. 192 Rogue 192 Adventurer 0 Explorer 0 Win Type - Total 2 Types 1/0/0/1/0/0/0/0/0/0 Lore% 81 Gallery% 65 Achievement% 63 Wizard Run 0 Options --------- Layout 0 ASCII 0 Keyboard 0 Movement Mouse Keybinds 0 Fullscreen 1 Font 18/SmallcapsGlow Map View 76x50 Zoom Use 0% Tactical HUD 1 Map Filters NONE Filters NONE Steam 1 RUN: 2420af5c-5d98-4675-8731-017ae0828964